Cogmind - Beta 10.2 @@@ ROGUE MODE // 2021.03.14 @ 23:05:25 Player: KTG-V2 Result: Destroyed by B-75 Beast with Magnetic Acceleration Cannon Performance ------------- Evolutions (3) 1500 Regions Visited (10) 2000 Robots Destroyed (126) 630 Value Destroyed (3744) 3744 Prototype IDs (12) 240 Alien Tech Used (0) 0 Bonus (-356) -356 TOTAL SCORE: 7758 Bonus ------- Met Data Miner 300 Friendly Fire -656 Cogmind --------- Core Integrity 0/700 Matter 300/300 Energy 100/100 System Corruption 0% Temperature Cool (0) Movement Core (50) Location -6/Proximity Caves Parts ------- > --- POWER (1) -------- (None) > --- PROPULSION (4) --- (None) > --- UTILITY (6) ------ Advanced Signal Interpreter > --- WEAPON (2) ------- (None) > --- INVENTORY (4) ---- Light Angular Momentum Engine Makeshift Hover Unit Mini Grenade Launcher Axe Peak State ------------ > --- POWER ------------ Light Nuclear Core > --- PROPULSION ------- Light Treads Advanced Treads Armored Wheel Armored Wheel > --- UTILITY ---------- Improved Cooling System Large Storage Unit Large Storage Unit Large Storage Unit High-capacity Storage Unit Hardened Medium Armor Plating > --- WEAPON ----------- Improved EM Pulse Cannon Heavy Assault Rifle > --- INVENTORY -------- Light Nuclear Core Light Nuclear Core Armored Wheel Armored Wheel Improved Hover Unit Improved Hover Unit Airjet Medium Battery High-capacity Matter Pod Weight Redist. System Advanced Sensor Array Advanced Signal Interpreter Improved Melee Analysis Suite Microactuators Microactuators Hardened Medium Armor Plating Hardened Medium Armor Plating Hacking Suite System Backup Module High-powered Tractor Beam Assault Rifle Heavy Assault Rifle Minigun Flak Gun Flak Gun Mini Grenade Launcher Remote Datajack Axe Axe [Rating: 36] Favorites ----------- Power Ion Engine Engine Ion Engine Power Core Light Nuclear Core Propulsion Armored Wheel Treads Light Treads Leg Aluminum Leg Wheel Armored Wheel Hover Unit Improved Hover Unit Utility Large Storage Unit Device Microactuators Storage Large Storage Unit Processor Advanced Signal Interpreter Hackware System Shield Protection Hardened Medium Armor Plating Weapon Light Cannon Energy Gun Small Laser Energy Cannon Beam Cannon Ballistic Gun Gauss Rifle Ballistic Cannon Light Cannon Launcher Mini Grenade Launcher Slashing Weapon Axe Build | -11 -10 -10 -10 -9 -8 -7 -7 -7 -7 -6 ------- Run | Scr Mat Min Exi Min Mat Fac Low Low Dat Pro Slots Evolved 6 | . . . . . 4 2 . . . . Power . | . . . . . . . . . . . Propulsion 2 | . . . . . 1 1 . . . . Utility 4 | . . . . . 3 1 . . . . Weapon . | . . . . . . . . . . . Parts Attached 122 | 7 15 . 1 6 34 25 25 8 . 1 Power 14 | 1 2 . . 2 5 2 1 . . 1 Engine 8 | 1 1 . . 2 3 . . . . 1 Core 6 | . 1 . . . 2 2 1 . . . Reactor . | . . . . . . . . . . . Propulsion 31 | 2 4 . . 4 9 8 3 1 . . Treads 11 | 2 . . . . 3 5 . 1 . . Leg 5 | . 3 . . 2 . . . . . . Wheel 12 | . 1 . . 2 6 3 . . . . Hover 3 | . . . . . . . 3 . . . Flight . | . . . . . . . . . . . Utility 41 | 2 3 . 1 . 15 9 9 2 . . Device 11 | . . . . . 5 2 4 . . . Storage 16 | 2 3 . 1 . 5 1 3 1 . . Processor 2 | . . . . . 1 . 1 . . . Hackware 2 | . . . . . . 2 . . . . Protection 10 | . . . . . 4 4 1 1 . . Artifact . | . . . . . . . . . . . Weapon 36 | 2 6 . . . 5 6 12 5 . . Energy Gun 6 | 2 4 . . . . . . . . . Energy Cannon 4 | . 1 . . . . 2 1 . . . Ballistic Gun 7 | . . . . . 3 4 . . . . Ballistic Cannon 3 | . 1 . . . 2 . . . . . Launcher 4 | . . . . . . . 2 2 . . Special Weapon . | . . . . . . . . . . . Impact Weapon . | . . . . . . . . . . . Slashing Weapon 12 | . . . . . . . 9 3 . . Piercing Weapon . | . . . . . . . . . . . Special Melee Weapon . | . . . . . . . . . . . Unidentified Prototypes . | . . . . . . . . . . . Parts Lost 40 | . 5 . . . 9 15 6 1 . 4 Power 5 | . . . . . 3 1 1 . . . Propulsion 11 | . 1 . . . 1 5 3 . . 1 Utility 9 | . . . . . 2 3 2 1 . 1 Weapon 15 | . 4 . . . 3 6 . . . 2 Highest Loss Streak 7 | . 2 . . . 4 7 3 1 . 4 Average Slot Usage (%) 87 | . 99 100 94 85 99 96 78 40 38 38 Engine 7 | . 13 14 14 14 5 3 . . . . Core 1 | . . . . . 3 3 5 . . . Treads 7 | . 21 . . . 5 14 . 6 7 7 Leg 6 | . 6 28 28 15 . . . . . . Wheel 7 | . . . . 12 21 14 . . . . Hover 3 | . . . . . . . 20 . . . Device 5 | . . . . . 5 3 22 . . . Storage 21 | . 28 28 23 14 30 30 10 2 . . Processor 1 | . . . . . . . 6 7 7 7 Protection 3 | . . . . . 7 6 . 6 7 7 Energy Gun 3 | . 20 . . . . . . . . . Energy Cannon 4 | . 2 14 14 14 1 2 . . . . Ballistic Gun 2 | . . . . . 7 10 . . . . Ballistic Cannon 5 | . 5 14 14 14 8 1 . . . . Slashing Weapon 3 | . . . . . . . 11 14 15 15 Naked Turns . | . . . . . . . . . . . Heaviest Build 105 | 14 43 43 91 91 102 105 94 26 25 34 Greatest Support 42 | 40 40 20 20 20 36 42 31 28 28 28 Greatest Overweight (x) 8 | . 4 2 4 4 4 8 8 . . 1 Average Overweight (x) 1 | . . 2 2 4 2 3 . . . . Largest Inventory Capacity 42 | 8 16 16 24 24 42 30 30 4 4 4 Average Capacity 18 | 6 12 16 18 24 24 30 10 4 4 4 Most Carried 30 | 6 16 16 23 24 30 30 26 4 4 4 Average Carried 16 | 4 9 14 16 23 22 29 10 3 4 3 Final Capacity 30 | 8 16 16 24 24 30 30 4 4 4 4 Final Carried 30 | 6 16 14 22 24 30 26 4 4 4 4 Class Distribution -------------------- 47% | Hauler-Mutant 38% | Mutant 13% | Scavenger-Mutant Dominant Class ---------------- Mutant | -10/Materials Mutant | -10/Mines Mutant | -10/Exiles Hauler-Mutant | -9/Mines Hauler-Mutant | -8/Materials Hauler-Mutant | -7/Factory Scavenger-Mutant | -7/Lower Caves Mutant | -7/Lower Caves Mutant | -7/Data Miner Mutant | -6/Proximity Caves Resources | -11 -10 -10 -10 -9 -8 -7 -7 -7 -7 -6 ----------- Run | Scr Mat Min Exi Min Mat Fac Low Low Dat Pro Matter Collected 3183 | 270 337 12 28 112 1228 766 275 138 . 17 Remotely 385 | . . . . . 385 . . . . . Salvage Created 5154 | 126 1071 17 . 195 1819 1468 258 200 . . Parts 277 | 6 67 2 . 12 89 79 12 10 . . Haulers Intercepted 4 | . 1 . . . 2 1 . . . . Recyclers Shooed 7 | . 4 1 . . . 2 . . . . Parts Field Recycled . | . . . . . . . . . . . Retrieved Matter . | . . . . . . . . . . . Parts Self-Destructed 15 | . . . . . . . 4 11 . . Prevented 4 | . . . . . . . 4 . . . Kills | -11 -10 -10 -10 -9 -8 -7 -7 -7 -7 -6 ------- Run | Scr Mat Min Exi Min Mat Fac Low Low Dat Pro Combat Hostiles Destroyed 90 | . 17 2 . 8 32 21 4 6 . . Melee 1 | . . . . . . . . 1 . . Guns 42 | . 13 . . . 15 14 . . . . Cannons 36 | . 3 2 . 8 17 6 . . . . AOE 9 | . 1 . . . . . 3 5 . . Classes Destroyed 16 | 2 7 . . 1 3 1 2 . . . Worker 5 | . 1 . . . 3 1 . . . . Builder 3 | . 1 . . . 1 1 . . . . Tunneler 3 | 2 . . . . 1 . . . . . Hauler 4 | . 1 . . . 2 1 . . . . Recycler 13 | 1 5 . . . 3 4 . . . . Operator 5 | . 2 . . . 2 1 . . . . Watcher 5 | . 3 . . . . 2 . . . . Swarmer 20 | . 6 2 . . 3 3 3 3 . . Grunt 44 | . 11 . . 5 17 9 . 2 . . Duelist 4 | . . . . . 1 2 . 1 . . Sentry 12 | . . . . . 9 3 . . . . Hunter 4 | . . . . . 2 1 1 . . . Programmer 3 | . . . . . . 3 . . . . Samaritan 4 | . . . . . . . 3 1 . . Assembled 3 | . . . . 3 . . . . . . Mutant 1 | . . . . . . . 1 . . . Best Kill Streak 6 | 3 4 2 . 2 6 5 3 3 . . Combat Bots Only 5 | . 3 2 . 2 5 3 3 3 . . Max Kills in Single Turn 2 | 1 1 1 . 1 2 1 2 2 . . Gunslinging . | . . . . . . . . . . . Exploded 2 | . 1 . . . . . 2 2 . . Melee 1 | . . . . . . . . 1 . . Uniques/NPCs Destroyed . | . . . . . . . . . . . Combat | -11 -10 -10 -10 -9 -8 -7 -7 -7 -7 -6 -------- Run | Scr Mat Min Exi Min Mat Fac Low Low Dat Pro Damage Taken 6876 | . 501 27 . 121 2308 2391 523 473 . 532 Core 1089 | . 23 9 . 22 334 295 170 65 . 171 Absorbed by Shields . | . . . . . . . . . . . Core Remaining (%) 72 | 100 . . . 78 39 . . . . . Volleys Fired 330 | 8 73 4 . 14 120 95 9 7 . . Largest 2 | 2 2 2 . 2 2 2 1 1 . . Hottest 95 | 80 95 95 . 95 95 92 69 30 . . Shots Fired 594 | 16 138 8 . 28 233 155 9 7 . . Gun 322 | 16 105 . . . 82 119 . . . . Cannon 261 | . 33 8 . 28 151 36 5 . . . Launcher 11 | . . . . . . . 4 7 . . Special . | . . . . . . . . . . . Kinetic 369 | . 23 4 . 14 201 127 . . . . Thermal 156 | 8 98 4 . 14 32 . . . . . Explosive 11 | . . . . . . . 4 7 . . Electromagnetic 58 | 8 17 . . . . 28 5 . . . Robot Hit Streak 16 | 6 15 10 . 15 16 16 6 2 . . Robot Miss Streak 6 | 1 2 2 . 1 3 6 2 1 . . Penetration Max 1 | . . . . . 1 . . . . . Secondary Targets 2 | . 1 . . . . 1 . . . . Max Gunslinging Chain 1 | . 1 . . . . 1 . . . . Shots Hit Robots 460 | 13 90 5 . 22 172 127 12 11 . 8 Core Hits 250 | 4 45 2 . 10 76 90 7 15 . 1 Critical Hits 3 | . . . . . 2 . . 1 . . Critical Kills 1 | . . . . . 1 . . . . . Critical Parts Destroyed 2 | . . . . . 1 . . 1 . . Melee Attacks 34 | . . . . . . . 17 9 . 8 Impact . | . . . . . . . . . . . Slashing 34 | . . . . . . . 17 9 . 8 Piercing . | . . . . . . . . . . . Sneak Attacks 11 | . . . . . . . 9 2 . . Combat Hostiles . | . . . . . . . . . . . Follow-up Attacks 2 | . . . . . . . 1 . . 1 Damage Inflicted 9870 | 158 1223 91 . 382 2912 2440 1387 1017 . 260 Guns 3913 | 158 831 . . . 1250 1674 . . . . Cannons 3271 | . 296 91 . 382 1662 744 96 . . . Explosions 1024 | . 96 . . . . 22 294 612 . . Melee 1662 | . . . . . . . 997 405 . 260 Ramming . | . . . . . . . . . . . Kinetic 4622 | . 208 35 . 171 2461 1747 . . . . Thermal 1584 | 54 790 56 . 211 451 22 . . . . Explosive 906 | . . . . . . . 294 612 . . Electromagnetic 1096 | 104 225 . . . . 671 96 . . . Impact . | . . . . . . . . . . . Slashing 1662 | . . . . . . . 997 405 . 260 Piercing . | . . . . . . . . . . . Highest Corruption 2 | . . . . . 2 2 2 . . . Average Corruption 1 | . . . . . 2 1 1 . . . Corruption Purged 2 | . . . . . . . 2 . . . Effects 22 | . . . . . 14 2 6 . . . Message Errors 8 | . . . . . 4 1 3 . . . Heat Flow Errors 1 | . . . . . . . 1 . . . Energy Discharges 3 | . . . . . 3 . . . . . Data Loss (minor) 5 | . . . . . 3 . 2 . . . Targeting Errors 3 | . . . . . 3 . . . . . Weapon Failures 2 | . . . . . 1 1 . . . . Overload Shots . | . . . . . . . . . . . Overflow Damage 616 | . 38 14 . . 8 26 407 123 . . Projectiles 64 | . 28 14 . . 8 14 . . . . Explosions 73 | . 10 . . . . 12 31 20 . . Melee 479 | . . . . . . . 376 103 . . Knockbacks 16 | . 1 . . 2 13 . . . . . Impact . | . . . . . . . . . . . Kinetic 13 | . 1 . . 2 10 . . . . . Secondary 3 | . . . . . 3 . . . . . Self-Inflicted Damage 175 | . 70 . . . . 29 17 59 . . Shots 7 | . 2 . . . . 1 1 3 . . Rammed . | . . . . . . . . . . . Targets Rammed . | . . . . . . . . . . . Kicked . | . . . . . . . . . . . Crushed . | . . . . . . . . . . . Highest Temperature 159 | 126 159 99 . 78 144 26 93 . . . Average Temperature 39 | 59 50 43 . 36 36 7 48 . . . Received Heat Transfer 1773 | . 177 . . 60 819 603 72 18 . 24 Siege Activations . | . . . . . . . . . . . Robots Corrupted 3 | . . . . . . 2 1 . . . Combat Hostiles 2 | . . . . . . 1 1 . . . Parts Fried 11 | . 2 . . . . 8 1 . . . Impact Corruptions 1 | . . . . . 1 . . . . . Robots Melted . | . . . . . . . . . . . Combat Hostiles . | . . . . . . . . . . . Parts Melted 2 | . 1 . . . 1 . . . . . Heat Transferred 3410 | 125 1718 111 . 444 962 50 . . . . Parts Sabotaged . | . . . . . . . . . . . Parts Stolen . | . . . . . . . . . . . Parts Stripped . | . . . . . . . . . . . Power Chain Reactions 4 | . 3 . . . . 1 . . . . Missiles Intercepted . | . . . . . . . . . . . Alert | -11 -10 -10 -10 -9 -8 -7 -7 -7 -7 -6 ------- Run | Scr Mat Min Exi Min Mat Fac Low Low Dat Pro Peak Influence 368 | 15 223 96 . 40 368 296 . . . . Initial 73 | . 9 41 . . 15 73 . . . . Average 102 | 7 142 67 . 24 104 130 . . . . Maximum Alert Level 1 | . 1 . . . 1 1 . . . . Low Security (%) 90 | 100 82 100 . 100 92 84 . . . . Level 1 9 | . 17 . . . 7 15 . . . . Level 2 . | . . . . . . . . . . . Level 3 . | . . . . . . . . . . . Level 4 . | . . . . . . . . . . . Level 5 . | . . . . . . . . . . . High Security . | . . . . . . . . . . . Max Security . | . . . . . . . . . . . Squads Dispatched 22 | . 5 . . . 9 8 . . . . Investigation 9 | . 3 . . . 3 3 . . . . Extermination 2 | . . . . . . 2 . . . . Reinforcement 7 | . 2 . . . 3 2 . . . . Assault . | . . . . . . . . . . . Garrison 4 | . . . . . 3 1 . . . . Intercept . | . . . . . . . . . . . Construction Impeded 2 | . . . . . 1 1 . . . . Haulers Reinforced . | . . . . . . . . . . . Stealth | -11 -10 -10 -10 -9 -8 -7 -7 -7 -7 -6 --------- Run | Scr Mat Min Exi Min Mat Fac Low Low Dat Pro Distress Signals 3 | . 1 . . . 1 1 . . . . Communications Jammed . | . . . . . . . . . . . Distress Signals . | . . . . . . . . . . . Times Spotted 145 | . 33 3 . 9 43 39 7 10 . 1 Peak Tracking Total 5 | . 4 3 . 2 4 5 3 4 . 1 Tactical Retreats 14 | . 1 1 . 1 . 5 3 3 . . Traps | -11 -10 -10 -10 -9 -8 -7 -7 -7 -7 -6 ------- Run | Scr Mat Min Exi Min Mat Fac Low Low Dat Pro Traps Triggered 4 | . . . . . 1 3 . . . . Indirectly . | . . . . . . . . . . . Trap Hack Attempts . | . . . . . . . . . . . Triggered . | . . . . . . . . . . . Disarmed . | . . . . . . . . . . . Reprogrammed . | . . . . . . . . . . . Reused . | . . . . . . . . . . . Traps Extracted . | . . . . . . . . . . . Installed . | . . . . . . . . . . . Triggered 4 | . . . . . . . 1 3 . . Machines | -11 -10 -10 -10 -9 -8 -7 -7 -7 -7 -6 ---------- Run | Scr Mat Min Exi Min Mat Fac Low Low Dat Pro Machines Disabled 3 | . 1 . . . 2 . . . . . Max in Single Turn 1 | . 1 . . . 1 . . . . . Machines Sabotaged . | . . . . . . . . . . . Garrisons Compromised . | . . . . . . . . . . . Overloaded Fab Kills . | . . . . . . . . . . . Fab Network Shutdowns . | . . . . . . . . . . . Hacking | -11 -10 -10 -10 -9 -8 -7 -7 -7 -7 -6 --------- Run | Scr Mat Min Exi Min Mat Fac Low Low Dat Pro Machines Accessed 27 | . 9 . . . 8 6 . . 4 . Terminals 16 | . 6 . . . 6 4 . . . . Fabricators . | . . . . . . . . . . . Repair Stations 2 | . 1 . . . 1 . . . . . Recycling Units 2 | . 2 . . . . . . . . . Scanalyzers 1 | . . . . . . 1 . . . . Garrison Access 2 | . . . . . 1 1 . . . . Total Hacks 99 | . 26 . . . 24 23 . . 26 . Successful 62 | . 14 . . . 11 11 . . 26 . Failed 37 | . 12 . . . 13 12 . . . . Catastrophic 6 | . 1 . . . 3 2 . . . . Database Lockouts . | . . . . . . . . . . . Manual 35 | . 20 . . . 7 8 . . . . Terminals 51 | . 19 . . . 15 17 . . . . Fabricators . | . . . . . . . . . . . Repair Stations 10 | . 3 . . . 7 . . . . . Recycling Units 4 | . 4 . . . . . . . . . Scanalyzers 3 | . . . . . . 3 . . . . Garrison Access 5 | . . . . . 2 3 . . . . Terminal Hacks 44 | . 5 . . . 5 8 . . 26 . Record 13 | . 1 . . . 1 . . . 11 . Part Schematic 9 | . 1 . . . . 2 . . 6 . Robot Schematic 6 | . . . . . . . . . 6 . Robot Analysis 1 | . 1 . . . . . . . . . Prototype ID Bank 4 | . 1 . . . . . . . 3 . Branch Access Points 2 | . . . . . 1 1 . . . . Emergency Access Points 1 | . . . . . . 1 . . . . Unreport Threat 5 | . . . . . 3 2 . . . . Locate Traps 3 | . 1 . . . . 2 . . . . Fabricator Hacks . | . . . . . . . . . . . Repair Station Hacks 6 | . 2 . . . 4 . . . . . Scan Component 3 | . 1 . . . 2 . . . . . Repair 3 | . 1 . . . 2 . . . . . Recycling Unit Hacks 1 | . 1 . . . . . . . . . Report Inventory 1 | . 1 . . . . . . . . . Scanalyzer 3 | . . . . . . 3 . . . . Insert Component 1 | . . . . . . 1 . . . . Analyze 2 | . . . . . . 2 . . . . Garrison Access Hacks . | . . . . . . . . . . . Unauthorized Hacks 8 | . 6 . . . 2 . . . . . Terminals 6 | . 4 . . . 2 . . . . . Track 2 | . 1 . . . 1 . . . . . Assimilate 2 | . 1 . . . 1 . . . . . Botnet 2 | . 2 . . . . . . . . . Fabricators . | . . . . . . . . . . . Repair Stations . | . . . . . . . . . . . Recycling Units 2 | . 2 . . . . . . . . . Tunnel 2 | . 2 . . . . . . . . . Scanalyzers . | . . . . . . . . . . . Garrison Access . | . . . . . . . . . . . Data Cores Recovered . | . . . . . . . . . . . Used . | . . . . . . . . . . . Hacking Detections 23 | . 9 . . . 8 6 . . . . Full Trace Events 7 | . 1 . . . 3 3 . . . . Feedback Events . | . . . . . . . . . . . Feedback Blocked . | . . . . . . . . . . . Robot Schematics Acquired 6 | . . . . . . . . . 6 . Robots Built . | . . . . . . . . . . . Matter . | . . . . . . . . . . . Time . | . . . . . . . . . . . Total Robot Build Rating . | . . . . . . . . . . . Part Schematics Acquired 9 | . 1 . . . . 2 . . 6 . Parts Built . | . . . . . . . . . . . Matter . | . . . . . . . . . . . Time . | . . . . . . . . . . . Total Part Build Rating . | . . . . . . . . . . . Parts Repaired 3 | . 1 . . . 2 . . . . . Time 84 | . 26 . . . 58 . . . . . Parts Recycled . | . . . . . . . . . . . Recycled Matter . | . . . . . . . . . . . Retrieved Matter . | . . . . . . . . . . . Retrieved Components . | . . . . . . . . . . . Parts Scanalyzed 1 | . . . . . . 1 . . . . Part Schematics Acquired . | . . . . . . . . . . . Parts Damaged . | . . . . . . . . . . . Bothacking | -11 -10 -10 -10 -9 -8 -7 -7 -7 -7 -6 ------------ Run | Scr Mat Min Exi Min Mat Fac Low Low Dat Pro Used RIF Installer . | . . . . . . . . . . . Robots Hacked . | . . . . . . . . . . . Non-combat . | . . . . . . . . . . . Combat . | . . . . . . . . . . . Robot Hacks Applied . | . . . . . . . . . . . Relay Couplers Released . | . . . . . . . . . . . Robots Rewired . | . . . . . . . . . . . Allies Hacked . | . . . . . . . . . . . Hacks Repelled . | . . . . . . . . . . . Allies | -11 -10 -10 -10 -9 -8 -7 -7 -7 -7 -6 -------- Run | Scr Mat Min Exi Min Mat Fac Low Low Dat Pro Total Allies 2 | . 1 . . . . . . . . 1 Largest Group 1 | . 1 . . . . . . . . 1 Highest-Rated Group 94 | . 10 . . . . . . . . 94 Highest-Rated Ally 94 | . 10 . . . . . . . . 94 Total Orders . | . . . . . . . . . . . Ally Attacks 10 | . . . . . . . . . . 10 Total Damage 443 | . . . . . . . . . . 443 Kills . | . . . . . . . . . . . Allies Corrupted . | . . . . . . . . . . . Allies Melted . | . . . . . . . . . . . Intel | -11 -10 -10 -10 -9 -8 -7 -7 -7 -7 -6 ------- Run | Scr Mat Min Exi Min Mat Fac Low Low Dat Pro Robot Analysis Total 1 | . 1 . . . . . . . . . Derelict Logs Recovered 3 | . . 1 . 1 . . 1 . . . Drone Launches . | . . . . . . . . . . . Drone Recoveries . | . . . . . . . . . . . Exploration | -11 -10 -10 -10 -9 -8 -7 -7 -7 -7 -6 ------------- Run | Scr Mat Min Exi Min Mat Fac Low Low Dat Pro Turns Passed 10082 | 150 1658 518 666 1112 1692 1722 1609 583 128 244 Spaces Moved 5434 | 73 784 280 335 606 908 921 995 312 81 139 Core 75 | 6 . . . . . . 41 27 . 1 Treads 1365 | 67 617 . . . 38 139 . 285 81 138 Legs 1004 | . 163 280 335 226 . . . . . . Wheels 2057 | . 4 . . 380 870 782 21 . . . Hover 933 | . . . . . . . 933 . . . Flight . | . . . . . . . . . . . Fastest Speed 50 | 50 120 180 120 120 100 120 50 50 160 100 Average Speed 134 | 150 166 180 192 164 116 141 56 150 160 159 Slowest Speed 450 | 160 200 180 240 240 220 240 450 160 160 180 Overloaded Moves . | . . . . . . . . . . . Propulsion Burnouts . | . . . . . . . . . . . Robots Hopped . | . . . . . . . . . . . Cave-ins Triggered . | . . . . . . . . . . . Exploration Rate (%) 54 | 6 96 50 65 85 69 23 78 45 69 18 Regions Visited 10 Branch Regions 7 Pre-discovered Areas 5 | . 2 . . 2 . . . . 1 . Known Exits Taken 1 | . . . . . . 1 . . . . Unknown Exits Taken 9 | 1 1 1 1 1 1 . 1 1 1 . Scrap Searched 6 | . . . . 2 . . 2 1 . 1 Spaces Dug 10 | . . . . . . . 5 5 . . Terrain Destroyed 121 | . 7 . . . . 4 49 61 . . Melee 5 | . . . . . . . 5 . . . Projectile . | . . . . . . . . . . . AOE 116 | . 7 . . . . 4 44 61 . . Terrain Rammed . | . . . . . . . . . . . Walls Destroyed . | . . . . . . . . . . . Machines Disabled . | . . . . . . . . . . . Actions | -11 -10 -10 -10 -9 -8 -7 -7 -7 -7 -6 --------- Run | Scr Mat Min Exi Min Mat Fac Low Low Dat Pro Total 7612 | 93 1001 289 357 693 1328 1201 2017 402 80 151 Wait 1460 | . 102 . . 56 178 108 949 67 . . Move 5424 | 72 783 279 334 605 907 920 994 311 80 139 Hop . | . . . . . . . . . . . Pick Up 120 | 6 17 2 19 5 48 20 1 1 . 1 Fast Attach 40 | 7 3 . 1 . 17 6 2 3 . 1 Attach 52 | . 8 . . . 14 11 18 1 . . Detach 12 | . 4 . . . . . 7 . . 1 Swap 30 | . 4 . . 6 3 8 5 4 . . Drop 100 | . 7 4 3 7 41 17 19 . . 2 Fire 330 | 8 73 4 . 14 120 95 9 7 . . Melee 28 | . . . . . . . 13 8 . 7 Ram . | . . . . . . . . . . . Kick . | . . . . . . . . . . . Crush . | . . . . . . . . . . . Escape Stasis 16 | . . . . . . 16 . . . . Rewire . | . . . . . . . . . . . Trap . | . . . . . . . . . . . Miscellaneous . | . . . . . . . . . . . Route ------- -11/Scrapyard -10/Materials (discovered 4 exits: [*Mat x3] / [*Min]) -10/Mines -10/Exiles -9/Mines -8/Materials (discovered 2 exits: *Fac x2) -7/Factory (discovered 3 exits: Sto / *Low x2) -7/Lower Caves -7/Lower Caves (discovered 2 exits: [*Fac] / *Dat) -7/Data Miner -6/Proximity Caves History --------- Turn | Location | Event 38 | -11/Scrapyard | Discovered new exit (range 15) 151 | -11/Scrapyard | Entered Materials 332 | -10/Materials | Build established: Mutant 462 | -10/Materials | Discovered new exit (range 8) 604 | -10/Materials | Discovered new exit (range 12) 781 | -10/Materials | Discovered new exit (range 16) 1269 | -10/Materials | Discovered new exit (range 16) 1537 | -10/Materials | Repaired Lgt. Treads 1809 | -10/Materials | Entered Mines 2100 | -10/Mines | Learned Materials stockpile data 2166 | -10/Mines | Assembled infested the area 2319 | -10/Mines | Deemed a non-threat by the Exiles lab entrance 2319 | -10/Mines | Discovered new exit (range 5) 2327 | -10/Mines | Entered Exiles 2371 | -10/Exiles | Met 8R-AWN 2406 | -10/Exiles | Met EX-HEX 2474 | -10/Exiles | Met EX-DEC 2613 | -10/Exiles | Visited The Gauntlet 2960 | -10/Exiles | Discovered new exit (range 14) 2993 | -10/Exiles | Entered Mines 3047 | -9/Mines | Learned location of Storage (-7) 3094 | -9/Mines | Build established: Hauler-Mutant 3229 | -9/Mines | Excavation squad dispatched 3229 | -9/Mines | A large section of the Mines collapsed 3479 | -9/Mines | Excavation squad dispatched 3729 | -9/Mines | Excavation squad dispatched 3979 | -9/Mines | Excavation squad dispatched 4075 | -9/Mines | Discovered new exit (range 11) 4105 | -9/Mines | Entered Materials 4105 | -8/Materials | Evolved 4 slots: Propulsion x1, Utility x3 4400 | -8/Materials | Garrison activated, responded to threat 4541 | -8/Materials | Lost 4 parts (1p1n1u1w) 4686 | -8/Materials | Discovered new exit (range 15) 4830 | -8/Materials | Repaired Lgt. Cannon 4863 | -8/Materials | Repaired Arm. Wheel 4913 | -8/Materials | Core integrity fell below 50% 5000 | -8/Materials | Discovered new exit (range 6) 5797 | -8/Materials | Entered Factory 5797 | -7/Factory | Evolved 2 slots: Propulsion x1, Utility x1 6051 | -7/Factory | Identified exit to Storage 6051 | -7/Factory | Identified exit to Lower Caves 6232 | -7/Factory | Lost 3 parts (1u2w) 7429 | -7/Factory | Lost 3 parts (1p2n) 7447 | -7/Factory | Garrison activated, responded to threat 7519 | -7/Factory | Entered Lower Caves 7530 | -7/Lower Caves | Lost 7 parts (3n1u3w) 7830 | -7/Lower Caves | Encountered a Warlord checkpoint 7876 | -7/Lower Caves | Build established: Scavenger-Mutant 8120 | -7/Lower Caves | Learned 8 Factory zone layouts 8671 | -7/Lower Caves | Spotted B-75 Beast 8757 | -7/Lower Caves | Core integrity fell below 50% 9122 | -7/Lower Caves | Discovered new exit (range 11) 9128 | -7/Lower Caves | Entered another Lower Caves area 9138 | -7/Lower Caves | Lost 3 parts (2n1u) 9213 | -7/Lower Caves | Discovered new exit (range 6) 9233 | -7/Lower Caves | Build established: Mutant 9502 | -7/Lower Caves | Spotted B-75 Beast 9686 | -7/Lower Caves | Discovered new exit (range 13) 9711 | -7/Lower Caves | Entered Data Miner 9711 | -7/Data Miner | Discovered new exit (range 6) 9742 | -7/Data Miner | Met Data Miner 9769 | -7/Data Miner | Learned location of Section 7 (-2) 9769 | -7/Data Miner | Acquired the access code to Warlord's prototype stash 9796 | -7/Data Miner | Received God Mode back door access code from Data Miner 9839 | -7/Data Miner | Entered Proximity Caves 9946 | -6/Proximity Caves | Spotted B-75 Beast 9948 | -6/Proximity Caves | Escorted by Enhanced Grunt 10037 | -6/Proximity Caves | Core integrity fell below 20% 10083 | -6/Proximity Caves | Destroyed by B-75 Beast with Magnetic Acceleration Cannon Last Messages --------------- 09855_ Found Lgt. Angular Momentum Engine. 09855_ Found Mak. Hover Unit. 09855_ Found 36 Matter. 09856_ Acquired 7 matter. 09862_ Acquired Lgt. Angular Momentum Engine. 09863_ Acquired 10 matter. 09865_ Dropped Hcp. Matter Pod. 09866_ Dropped System Backup Module. 09868_ Acquired Mak. Hover Unit. 09948_ Enhanced Grunt: "Protecting LRC-V3." 10044_ Enhanced Grunt suffers critical hit. 10059_ Enhanced Grunt destroyed. 10064_ B-75 Beast Hvy. Plasma Cannon severed. 10066_ Critical hit. 10079_ Axe follow-up attack on B-75 Beast. 10080_ Med. Treads destroyed. 10080_ Knocked back. 10080_ Hrd. Heavy Armor Plating destroyed. 10083_ Axe destroyed. 10083_ Katana destroyed. Map ----- +----------------------------------------------------+ | ?????????????????????????????????????????????????? | | ?????????????????????????????????????????????????? | | ?????????????????????????????????????????????????? | | ?????????????????????????????????????????????????? | | ?????????????????????????????????????????????????? | | ?????????????????????????????????????????????????? | | ?????????????????????????????????????????????????? | | ?????????????????????????????????????????????????? | | ####?????????????????????????????????????????????? | | ####??????????????????????????????????????????? | | ##?????????????????????????????????????????? | | #?????????????????????????????????????????? | | #?????????????????????????????????????????? | | #????####??????????????????????????????????? | | #??????## ##??????????????###? ????????????? | | #??????# ##????????????# ## ????????????? | | ##?????# ###?????????? ???????????? | | #?????# ####??????# ????????????? | | #?????# ;##???## ?????????????? | | ##???### % ;#### ??????????????? | | ###??# ????????????????? | | ##?# ## #?????????????????? | | #?# ## ##?????????????????? | | ### ## ## #???????????? | | BB #???????????? | | ##!%! @BB #????????????? | | ## !### ### #????????????? | | ### #?####?## # #???????????? | | ??# #???????# # #???????????? | | ??#####???????### ### ##???????????? | | ????????????????## #????????????? | | #???????????###### ### ???????????? | | #??????????## ######?? ??????????? | | #??????????# #?????# ???????????? | | ???????????# ##?### ???????????? | | ????######## ### ????????????? | | #???# ## ????????????? | | ##??# ##? ??????????????? | | #### ####### #????? ????????????????? | | # #?????### ##????????????????????????? | | #???????### ##?????????????????????????? | | ####?????????## ###????????????????????????? | | ##?????????????# #????????????????????????? | | ##??????????????## #???????????????????????? | | ###????????????????#######???????????????????????? | | ?????????????????????????????????????????????????? | | ?????????????????????????????????????????????????? | | ?????????????????????????????????????????????????? | | ?????????????????????????????????????????????????? | | ?????????????????????????????????????????????????? | +----------------------------------------------------+ Best States ------------- Heat Dissipation 61 Energy Generation 14 Energy Capacity 400 Matter Stores 340 Matter Capacity 350 Sight Range 20 Robot Scan Range 16 Terrain Scan Density 10 Additional Mass Support 6 Armor Coverage 600 Melee Speed Boost 20 Evasion (%) 54 Recoil Reduction 2 Offensive Hacking 10 Defensive Hacking 10 Item Schematics ----------------- Lrg. Storage Unit | -10/Materials | Hacked Lrn. Sensor Array | -7/Factory | Hacked Adv. Signal Interpreter | -7/Factory | Hacked Combat Drone Bay | -7/Data Miner | Free Lgt. Regenerative Plating | -7/Data Miner | Free Exp. Cesium-ion Thruster | -7/Data Miner | Free Triangulator | -7/Data Miner | Free Exp. Sensor Array | -7/Data Miner | Free Mni. Smartbomb Launcher | -7/Data Miner | Free Robot Schematics ------------------ S-27 Virus | -7/Data Miner | Free G-50 Soldier | -7/Data Miner | Free L-41 Fighter | -7/Data Miner | Free H-66 Slayer | -7/Data Miner | Free I-36 Angel | -7/Data Miner | Free I-47 Archangel | -7/Data Miner | Free Fabricated ------------ Nothing Alien Tech Used ----------------- None Achievements -------------- None Challenges ------------ None Game ------ Seed FusionDataHumpback Manual? 0 Play Time 01:08:42 Cumulative 107.0 hours Start 2021.03.14 @ 20:48:09 End 2021.03.14 @ 23:05:25 Sessions 3 Manual Loads 0 Difficulty Rogue Special Mode None Game No. 27 Rogue 26 Adventurer 0 Explorer 1 Win Type - Total 7 Types 3/2/0/1/0/0/0/1/0 Lore% 54 Gallery% 63 Achievement% 49 Wizard Run 0 Options --------- ASCII 0 Keyboard 0 Movement Mouse Keybinds 0 Fullscreen 1 Font 18/Terminus Map View 76x50 Tactical HUD 1 Map Filters NONE Filters NONE Steam 0 RUN: 2bfab2c9-c0cf-4794-85ec-877eefb23a29